Workbook

Sheet sueldonetoybruto
C4: CALCULADORA SUELDOS NETOS Y SUELDOS BRUTOS 2018
D5: Area Geografica: | E5: A | Q5: A | R5: 80.6
D6: Días de aguinaldo: | E6: 15 | Q6: B | R6: 80.6
D7: Días de vacaciones: | E7: 6
D8: Prima vacacional: | E8: 0.25
D9: Frecuencia de pago: | E9: Mensual | K9: 7 | L9: 14 | M9: 15.2 | N9: 30.4
D10: Neto a pagar: | E10: 10000
D12: Días pago: | E12: =VLOOKUP(E9,A71:D74,3,FALSE) -> 30
D13: Días naturales: | E13: =VLOOKUP(E9,A71:D74,4, FALSE) -> 30
D14: Factor ISR: | E14: =VLOOKUP(E9,A71:D74,2,FALSE) -> 30.4
D16: Salario diario: | E16: 390.0236667 | F16: Factor de integración | K16: 30.4
D17: Salario diario integrado: | E17: =IF(E16*F17>25*R5,25*R5,E16*F17) -> 407.6527364 | F17: =ROUND( (365 +E6+E7*E8) / 365, 4 ) -> 1.0452
D19: Percepciones
D20: Sueldo Ordinario | E20: =E16*E12 -> 11700.71
D21: Total de Percepciones: | E21: =SUM(E20:E20) -> 11700.71
D23: Deducciones
D24: ISPT | E24: =MAX( D47-D56, 0 ) -> 1216.46
D25: IMSS | E25: =F63 -> 310.35
D26: Subsidio al Empleo | E26: =MIN(D47-D56,0) -> 0
D27: Total de Deducciones: | E27: =E24+E25+E26 -> 1526.81
D29: Neto a Pagar: | E29: =E21-E27 -> 10173.9
C32: ISR de Percepciones Periódicas | E32: IMSS Empleado
C33: Percepciones Gravadas | D33: =E21 -> 11700.71 | E33: Salario Base de Cotización | F33: =$E$17 -> 407.6527364
C34: ( / ) Días de Periodo de Pago | D34: =$E$14 -> 30.4 | E34: (X) Tasa Art. 25 | F34: 0.00375
C35: (X) Factor Mensual | D35: =$B$74 -> 30.4 | E35: (=) Cuota Diaria Art. 25 | F35: =ROUND(F33*F34,4) -> 1.5287
C36: (=) Gravadas Promedio Mensual | D36: =ROUND(D33/D34*D35,2) -> 11700.71
C37: Tabla Art. 96 LISR | E37: Salario Base de Cotización | F37: =$E$17 -> 407.6527364
C38: (-) Límite Inferior | D38: =VLOOKUP($D$36,$E$70:$O$80,1) -> 10031.08 | E38: (-) 3 SMGDF | F38: =3*$G$38 -> 241.8 | G38: =IF(E5="A",R5,IF(E5="B",R6,0)) -> 80.6
C39: (=) Excedente | D39: =D36-D38 -> 1669.63 | E39: (=) Excedente | F39: =MAX(F37-F38, 0) -> 165.8527364
C40: (X) Tasa | D40: =VLOOKUP($D$36,$E$70:$O$80,4) -> 0.1792 | E40: (X) Tasa Art. 106-2 | F40: 0.004
C41: (=) Impuesto Marginal | D41: =D39*D40 -> 299.197696 | E41: (=) Cuota Diaria Art. 106-2 | F41: =ROUND(F39*F40,4) -> 0.6634
C42: (+) Cuota Fija | D42: =VLOOKUP($D$36,$E$70:$O$80,3) -> 917.26
C43: (=) ISR Promedio Mensual | D43: =D41+D42 -> 1216.457696 | E43: Salario Base de Cotización | F43: =$E$17 -> 407.6527364
E44: (X) Tasa Art. 107 | F44: 0.0025
C45: (/ ) Factor Mensual | D45: =$B$74 -> 30.4 | E45: (=) Cuota Diaria Art. 107 | F45: =ROUND(F43*F44,4) -> 1.0191
C46: (X) Días de Periodo de Pago | D46: =$E$14 -> 30.4
C47: (=) ISR de Periodo | D47: =ROUND(D43/D45*D46,2) -> 1216.46 | E47: Salario Base de Cotización | F47: =$E$17 -> 407.6527364
E48: (X) Tasa Invalidez y Vida | F48: 0.00625
C49: Subsidio al Empleo | E49: (=) Cuota Diaria Invalidez y Vida | F49: =ROUND(F47*F48,4) -> 2.5478
C50: Gravadas Promedio Mensual | D50: =D36 -> 11700.71
E51: Salario Base de Cotización | F51: =$E$17 -> 407.6527364
C52: Tabla Subsidio al Empleo | D52: =IF( D50 <= 0, 0, VLOOKUP(D50,$E$84:$G$94,3)) -> 0 | E52: (X) Tasa Cesantía y Vejez | F52: 0.01125
E53: (=) Cuota Diaria Cesantía y Vejez | F53: =ROUND(F51*F52,4) -> 4.5861
C54: (/) Factor Mensual | D54: =$B$74 -> 30.4
C55: (X) Días de Periodo de Pago | D55: =$E$14 -> 30.4 | E55: Cuota Art. 25 | F55: =F35 -> 1.5287
C56: (=) Subsidio del Periodo | D56: =ROUND(D52/D54*D55,2) -> 0 | E56: (+) Cuota Art. 106-2 | F56: =F41 -> 0.6634
E57: (+) Cuota Art. 107 | F57: =F45 -> 1.0191
E58: (+) Cuota Invalidez y Vida | F58: =F49 -> 2.5478
E59: (+) Cuota Cesantía y Vejez | F59: =F53 -> 4.5861
E60: (=) Cuota Diaria Empleado | F60: =SUM(F55:F59) -> 10.3451
E62: (X) Dias de Periodo | F62: =E13 -> 30
E63: (=) IMSS Empleado | F63: =ROUND(F60*F62,2) -> 310.35
E68: Tabla Art. 96 LISR
E69: Límite Inferior | F69: Superior | G69: Cuota Fija | H69: Tasa
A70: Frecuencia | B70: Factor ISR | C70: Días Pago | D70: Días naturales | E70: 0.01 | F70: 578.52 | G70: – | H70: 0.0192
A71: Semanal | B71: 7 | C71: 7 | D71: 7 | E71: 578.53 | F71: 4910.18 | G71: 11.11 | H71: 0.064
A72: Catorcenal | B72: 14 | C72: 14 | D72: 14 | E72: 4910.19 | F72: 8629.2 | G72: 288.33 | H72: 0.1088
A73: Quincenal | B73: 15.2 | C73: 15 | D73: 15 | E73: 8629.21 | F73: 10031.07 | G73: 692.96 | H73: 0.16
A74: Mensual | B74: 30.4 | C74: 30 | D74: 30 | E74: 10031.08 | F74: 12009.94 | G74: 917.26 | H74: 0.1792
E75: 12009.95 | F75: 24222.31 | G75: 1271.87 | H75: 0.2136
E76: 24222.32 | F76: 38177.69 | G76: 3880.44 | H76: 0.2352
E77: 38177.7 | F77: 72887.5 | G77: 7162.74 | H77: 0.3
E78: 72887.51 | F78: 97183.33 | G78: 17575.69 | H78: 0.32
E79: 97183.34 | F79: 291550 | G79: 25350.35 | H79: 0.34
E80: 291550.01 | G80: 91435.02 | H80: 0.35
E82: Subsidio para el Empleo
E83: Límite Inferior | F83: Superior | G83: Subsidio
E84: 0.01 | F84: 1768.96 | G84: 407.02
E85: 1768.97 | F85: 2653.38 | G85: 406.83
E86: 2653.39 | F86: 3472.84 | G86: 406.62
E87: 3472.85 | F87: 3537.87 | G87: 392.77
E88: 3537.88 | F88: 4446.15 | G88: 382.46
E89: 4446.16 | F89: 4717.18 | G89: 354.23
E90: 4717.19 | F90: 5335.42 | G90: 324.87
E91: 5335.43 | F91: 6224.67 | G91: 294.63
E92: 6224.68 | F92: 7113.9 | G92: 253.54
E93: 7113.91 | F93: 7382.33 | G93: 217.61
E94: 7382.34 | G94: 0
